Cogmind - Beta 17 @@@ ROGUE MODE // 2026.08.06 @ 15:32:04 Player: Floof Enjoyer Result: Destroyed by H-61 Shepherd with Heavy Assault Cannon Performance ------------- Evolutions (2) 1000 Regions Visited (3) 600 Robots Destroyed (35) 175 Value Destroyed (752) 752 Prototype IDs (1) 20 Alien Tech Used (0) 0 Bonus (0) 0 TOTAL SCORE: 2547 Bonus ------- None Cogmind --------- Core Integrity 0/550 Matter 145/300 Energy 100/100 System Corruption 0% Temperature Cool (18) Movement Core (150) Ox2 Location -8/Materials Parts ------- > --- POWER (1) -------- (None) > --- PROPULSION (4) --- (None) > --- UTILITY (4) ------ Improved Terrain Scan Processor > --- WEAPON (2) ------- Improved Assault Rifle Assault Cannon > --- INVENTORY (5) ---- Matter Filter Matter Filter Small Laser Peak State ------------ > --- POWER ------------ Light Ion Engine > --- PROPULSION ------- Wheel Armored Wheel Hover Unit > --- UTILITY ---------- Small Storage Unit Improved Terrain Scan Processor Matter Filter Hacking Suite > --- WEAPON ----------- Heavy Assault Rifle Improved Assault Rifle > --- INVENTORY -------- Ion Engine Matter Filter Small Laser Assault Cannon Grenade Launcher [Rating: 22] Favorites ----------- Power Light Ion Engine Engine Light Ion Engine Propulsion Hover Unit Wheel Wheel Hover Unit Hover Unit Flight Unit Flight Unit Utility Small Storage Unit Device Seismic Detector Storage Small Storage Unit Processor Improved Terrain Scan Processor Hackware Hacking Suite Weapon Autogun Energy Gun Small Laser Ballistic Gun Autogun Ballistic Cannon Assault Cannon Launcher Grenade Launcher Build | -11 -10 -9 -8 ------- Run | Yrd Mat Mat Mat Slots Evolved 4 | . . 2 2 Power . | . . . . Propulsion 2 | . . 2 . Utility 2 | . . . 2 Weapon . | . . . . Parts Attached 28 | 7 3 12 6 Power 5 | 1 1 2 1 Engine 5 | 1 1 2 1 Core . | . . . . Reactor . | . . . . Propulsion 10 | 2 2 6 . Treads . | . . . . Leg . | . . . . Wheel 4 | 2 . 2 . Hover 3 | . . 3 . Flight 3 | . 2 1 . Utility 5 | 2 . 1 2 Device 2 | 1 . . 1 Storage 1 | 1 . . . Processor 1 | . . . 1 Hackware 1 | . . 1 . Protection . | . . . . Artifact . | . . . . Weapon 8 | 2 . 3 3 Energy Gun 3 | 2 . 1 . Energy Cannon . | . . . . Ballistic Gun 3 | . . 2 1 Ballistic Cannon 1 | . . . 1 Launcher 1 | . . . 1 Special Weapon . | . . . . Impact Weapon . | . . . . Slashing Weapon . | . . . . Piercing Weapon . | . . . . Special Melee Weapon . | . . . . Unidentified Prototypes 1 | . . 1 . Parts Lost 13 | . 1 4 8 Power 3 | . . 1 2 Propulsion 5 | . . 3 2 Utility 3 | . 1 . 2 Weapon 2 | . . . 2 Highest Loss Streak 8 | . 1 2 8 To Critical Strikes . | . . . . Average Backups 3 | 1 2 3 5 Power . | . . . . Propulsion . | . . . . Utility . | . . . 1 Weapon 1 | . 1 1 3 Tool/Special . | . . . . Unused Backups 2 | . . . 2 Power . | . . . . Propulsion . | . . . . Utility 2 | . . . 2 Weapon . | . . . . Tool/Special . | . . . . Average Slot Usage (%) 74 | . 96 69 70 Engine 10 | . 14 11 6 Wheel 8 | . 19 2 14 Hover 8 | . . 12 2 Flight 5 | . 8 5 . Device 3 | . 10 . 6 Storage 11 | . 14 11 9 Processor 1 | . . . 7 Hackware 4 | . . 4 7 Energy Gun 11 | . 28 10 . Ballistic Gun 9 | . . 11 14 Peak Build Rating 22 | 7 7 14 22 Average Rating 9 | 4 6 8 17 On Entrance 6 | . 7 6 14 Avg Prop Armor Cover (%) 5 | . . 5 4 Naked Turns . | . . . . Heaviest Build 17 | 14 14 14 17 Greatest Support 26 | 26 26 22 22 Greatest Overweight (x) 4 | . 1 2 4 Average Overweight (x) . | . . . . Largest Inventory Capacity 8 | 8 8 8 8 Average Capacity 7 | 6 8 8 7 Most Carried 7 | 3 5 5 7 Average Carried 3 | 1 2 3 5 Final Capacity 8 | 8 8 8 5 Final Carried 5 | 2 2 5 3 Class Distribution -------------------- 100% | Mutant Dominant Class ---------------- Mutant | -10/Materials Mutant | -9/Materials Mutant | -8/Materials Resources | -11 -10 -9 -8 ----------- Run | Yrd Mat Mat Mat Matter Collected 616 | 133 70 413 . Remotely . | . . . . Salvage Created 1237 | 127 133 892 85 Parts 76 | 8 12 53 3 Haulers Intercepted . | . . . . Recyclers Shooed 9 | . 2 7 . Parts Field Recycled . | . . . . Retrieved Matter . | . . . . Parts Self-Destructed . | . . . . Prevented . | . . . . Parts Restored . | . . . . Kills | -11 -10 -9 -8 ------- Run | Yrd Mat Mat Mat Combat Hostiles Destroyed 20 | . 4 14 2 Guns 19 | . 4 13 2 AOE 1 | . . 1 . Classes Destroyed 9 | 2 2 5 . Worker 2 | . . 2 . Builder 1 | . . 1 . Tunneler 5 | 4 1 . . Recycler 5 | 1 . 4 . Operator 1 | . . 1 . Watcher 1 | . . 1 . Swarmer 6 | . 2 4 . Grunt 11 | . 2 7 2 Sentry 3 | . . 3 . Best Kill Streak 16 | 5 5 16 1 Combat Bots Only 9 | . 4 9 1 Max Kills in Single Turn 1 | 1 1 1 1 Gunslinging . | . . . . Exploded 1 | . . 1 . Melee . | . . . . Uniques/NPCs Destroyed . | . . . . Combat | -11 -10 -9 -8 -------- Run | Yrd Mat Mat Mat Hostile Shots Fired 152 | . 24 56 72 Missed 42 | . 5 14 23 Hits 110 | . 19 42 49 Projectile 110 | . 19 42 49 Critical Strikes 5 | . . 1 4 Damage Taken 1889 | . 186 533 1170 Core 750 | . 40 153 557 Absorbed by Shields . | . . . . Core Remaining (%) 81 | 100 84 61 . Volleys Fired 101 | 8 13 55 25 Largest 2 | 2 2 2 2 Hottest 90 | 80 80 90 67 Shots Fired 189 | 16 26 105 42 Gun 175 | 16 26 105 28 Cannon 13 | . . . 13 Launcher 1 | . . . 1 Special . | . . . . Kinetic 99 | . . 58 41 Thermal 64 | 8 13 43 . Explosive 1 | . . . 1 Electromagnetic 25 | 8 13 4 . Robot Hit Streak 9 | 6 8 9 9 Robot Miss Streak 3 | 1 3 2 2 Penetration Max . | . . . . Secondary Targets 5 | . 1 4 . Max Gunslinging Chain 1 | . 1 1 . Shots Hit Robots 119 | 12 15 63 29 Core Hits 58 | 6 8 36 8 Critical Kills . | . . . . Critical Parts Destroyed . | . . . . Critical Strikes 2 | . . 2 . Burn 2 | . . 2 . Melee Attacks . | . . . . Impact . | . . . . Slashing . | . . . . Piercing . | . . . . Sneak Attacks . | . . . . Combat Hostiles . | . . . . Follow-up Attacks . | . . . . Damage Inflicted 1942 | 207 204 929 602 Guns 1515 | 138 204 878 295 Cannons 246 | . . . 246 Explosions 174 | 69 . 51 54 Melee . | . . . . Ramming 7 | . . . 7 Kinetic 999 | . . 458 541 Thermal 623 | 112 91 420 . Explosive 54 | . . . 54 Electromagnetic 259 | 95 113 51 . Impact . | . . . . Slashing . | . . . . Piercing . | . . . . Highest Corruption . | . . . . Average Corruption . | . . . . Corruption Purged . | . . . . Corruption Blocked . | . . . . Overload Shots . | . . . . Overflow Damage 27 | . . 27 . Projectiles . | . . . . Explosions 27 | . . 27 . Melee . | . . . . Knockbacks 1 | . . . 1 Impact . | . . . . Kinetic 1 | . . . 1 Secondary . | . . . . Self-Inflicted Damage 44 | . . 41 3 Shots 1 | . . 1 . Rammed 2 | . . . 2 Targets Rammed 2 | . . . 2 Kicked . | . . . . Crushed . | . . . . Highest Temperature 272 | 90 222 272 9 Average Temperature 77 | 36 86 86 2 Received Heat Transfer 426 | . 60 213 153 Siege Activations . | . . . . Martial Activations . | . . . . Shielding Activations . | . . . . Robots Disrupted . | . . . . Combat Hostiles . | . . . . Robots Corrupted . | . . . . Combat Hostiles . | . . . . Parts Fried . | . . . . Impact Corruptions . | . . . . Robots Melted . | . . . . Combat Hostiles . | . . . . Parts Melted . | . . . . Heat Transferred 1453 | 150 200 1103 . Parts Sabotaged . | . . . . Parts Stolen . | . . . . Parts Stripped . | . . . . Power Chain Reactions 3 | 2 . 1 . Alert | -11 -10 -9 -8 ------- Run | Yrd Mat Mat Mat Maximum Alert Level 1 | . . 1 . Low Security (%) 85 | 100 100 73 100 Level 1 14 | . . 26 . Level 2 . | . . . . Level 3 . | . . . . Level 4 . | . . . . Level 5 . | . . . . High Security . | . . . . Max Security . | . . . . Peak Influence 262 | 10 100 262 96 Initial 96 | . . 33 96 Average 94 | 2 33 139 72 Influence Increases 665 | 25 120 456 64 Destroy 0b10 Robot/C 400 | . 80 280 40 Destroy 0b10 Robot/NC 75 | 25 5 45 . Destroy Leader 102 | . 20 82 . Disable Machine 60 | . 15 30 15 Destroy Structure 13 | . . 4 9 Lose Combat Pursuer 15 | . . 15 . Influence Decreases 655 | 25 40 306 284 Entered New Map 181 | . . 47 134 Time Decay 344 | 25 30 219 70 Lost Part 130 | . 10 40 80 Squads Dispatched 5 | . 1 3 1 Investigation . | . . . . Extermination . | . . . . Reinforcement 5 | . 1 3 1 Assault . | . . . . Garrison . | . . . . Intercept . | . . . . Searches Triggered . | . . . . Construction Impeded . | . . . . Haulers Reinforced . | . . . . Active Scanning Responses . | . . . . Cargo Convoy Interrupts . | . . . . Stealth | -11 -10 -9 -8 --------- Run | Yrd Mat Mat Mat Distress Signals 4 | . 1 3 . Communications Jammed . | . . . . Distress Signals . | . . . . Times Spotted 36 | . 7 22 7 Peak Tracking Total 7 | . 4 7 4 Tactical Retreats 1 | . . 1 . Traps | -11 -10 -9 -8 ------- Run | Yrd Mat Mat Mat Traps Triggered 1 | . . . 1 Indirectly . | . . . . Trap Hack Attempts . | . . . . Triggered . | . . . . Disarmed . | . . . . Reprogrammed . | . . . . Reused . | . . . . Traps Extracted . | . . . . Installed . | . . . . Triggered . | . . . . Machines | -11 -10 -9 -8 ---------- Run | Yrd Mat Mat Mat Machines Disabled 4 | . 1 2 1 Max in Single Turn 1 | . 1 1 1 Machines Repaired . | . . . . Machines Dismantled . | . . . . Machines Sabotaged . | . . . . Overloaded Fab Kills . | . . . . Hacking | -11 -10 -9 -8 --------- Run | Yrd Mat Mat Mat Machines Accessed 2 | . . 2 . Terminals . | . . . . Fabricators . | . . . . Repair Stations . | . . . . Recycling Units 2 | . . 2 . Scanalyzers . | . . . . Garrison Access . | . . . . Total Hacks 3 | . . 3 . Successful 2 | . . 2 . Failed 1 | . . 1 . Catastrophic . | . . . . Database Lockouts . | . . . . Manual . | . . . . Terminals . | . . . . Fabricators . | . . . . Repair Stations . | . . . . Recycling Units 3 | . . 3 . Scanalyzers . | . . . . Garrison Access . | . . . . Terminal Hacks . | . . . . Fabricator Hacks . | . . . . Repair Station Hacks . | . . . . Recycling Unit Hacks 2 | . . 2 . Report Inventory 2 | . . 2 . Scanalyzer . | . . . . Garrison Access Hacks . | . . . . Unauthorized Hacks . | . . . . Terminals . | . . . . Fabricators . | . . . . Repair Stations . | . . . . Recycling Units . | . . . . Scanalyzers . | . . . . Garrison Access . | . . . . Data Cores Recovered 1 | . . 1 . Used . | . . . . Hacking Detections 1 | . . 1 . Full Trace Events . | . . . . Feedback Events . | . . . . Feedback Blocked . | . . . . Robot Schematics Acquired . | . . . . Robots Built . | . . . . Authchips . | . . . . Time . | . . . . Total Robot Build Rating . | . . . . Part Schematics Acquired . | . . . . Parts Built . | . . . . Authchips . | . . . . Time . | . . . . Total Part Build Rating . | . . . . Part Studies Acquired . | . . . . Parts Repaired . | . . . . Time . | . . . . Parts Recycled . | . . . . Recycled Matter . | . . . . Retrieved Matter . | . . . . Retrieved Components . | . . . . Parts Scanalyzed . | . . . . Part Schematics Acquired . | . . . . Parts Damaged . | . . . . Bothacking | -11 -10 -9 -8 ------------ Run | Yrd Mat Mat Mat Used RIF Installer . | . . . . Robots Hacked . | . . . . Non-combat . | . . . . Combat . | . . . . Robot Hacks Applied . | . . . . Relay Couplers Released . | . . . . Fabnet Peak Effective % . | . . . . Robots Rewired . | . . . . Allies Hacked . | . . . . Hacks Repelled . | . . . . Allies | -11 -10 -9 -8 -------- Run | Yrd Mat Mat Mat Total Allies . | . . . . Largest Group . | . . . . Highest-Rated Group . | . . . . Highest-Rated Ally . | . . . . Total Orders . | . . . . Ally Attacks . | . . . . Total Damage . | . . . . Kills . | . . . . Allies Corrupted . | . . . . Allies Melted . | . . . . Intel | -11 -10 -9 -8 ------- Run | Yrd Mat Mat Mat Active Infowar (turns) 111 | 7 104 . . Seismic 111 | 7 104 . . Robot Analysis Total . | . . . . Derelict Logs Recovered . | . . . . Drone Launches . | . . . . Drone Recoveries . | . . . . Exploration | -11 -10 -9 -8 ------------- Run | Yrd Mat Mat Mat Turns Passed 854 | 87 149 465 153 Spaces Moved 499 | 53 108 260 78 Core 6 | 5 . . 1 Treads . | . . . . Legs . | . . . . Wheels 277 | 48 87 65 77 Hover 137 | . . 137 . Flight 79 | . 21 58 . Fastest Speed 50 | 50 90 56 85 Average Speed 100 | 89 95 108 87 Slowest Speed 250 | 100 117 200 250 Overloaded Moves . | . . . . Propulsion Burnouts . | . . . . Robots Hopped . | . . . . Potential Cave-ins . | . . . . Cave-ins Triggered . | . . . . Exploration Rate (%) 16 | 3 23 33 7 Regions Visited 3 Branch Regions . Pre-discovered Areas . | . . . . Known Exits Taken . | . . . . Unknown Exits Taken 3 | 1 1 1 . Scrap Searched . | . . . . Spaces Dug . | . . . . Terrain Destroyed 21 | 10 . 4 7 Melee . | . . . . Projectile 1 | . . . 1 AOE 20 | 10 . 4 6 Terrain Rammed . | . . . . Walls Destroyed . | . . . . Machines Disabled . | . . . . Actions | -11 -10 -9 -8 --------- Run | Yrd Mat Mat Mat Total 672 | 76 129 346 121 Wait . | . . . . Move 496 | 52 107 259 78 Hop . | . . . . Pick Up 31 | 9 3 14 5 Fast Attach . | . . . . Attach 23 | 7 2 9 5 Detach . | . . . . Swap 7 | . 1 4 2 Drop 12 | . 3 5 4 Fire 101 | 8 13 55 25 Melee . | . . . . Ram 2 | . . . 2 Kick . | . . . . Crush . | . . . . Escape Stasis . | . . . . Rewire . | . . . . Trap . | . . . . Miscellaneous . | . . . . Route ------- -11/Scrapyard -10/Materials -9/Materials (discovered 2 exits: [*Mat] / [*Min]) -8/Materials History --------- Turn | Location | Event 6 | -11/Scrapyard | Discovered new exit (range 15) 88 | -11/Scrapyard | Entered Materials 229 | -10/Materials | Discovered new exit (range 8) 237 | -10/Materials | Entered another Materials area 237 | -9/Materials | Evolved 2 slots: Propulsion x2 329 | -9/Materials | Build established: Mutant 404 | -9/Materials | Discovered new exit (range 14) 461 | -9/Materials | Destroyed 9 combat bots 669 | -9/Materials | Discovered new exit (range 15) 702 | -9/Materials | Entered another Materials area 702 | -8/Materials | Evolved 2 slots: Utility x2 824 | -8/Materials | Core integrity fell below 50% 849 | -8/Materials | Core integrity fell below 20% 855 | -8/Materials | Destroyed by H-61 Shepherd with Heavy Assault Cannon Last Messages --------------- Knocked back. U-05 Engineer builds a Wall. Arm. Wheel destroyed. Knocked back. Discarded Hacking Suite. Slammed into U-05 Engineer. Penetrated by Slug. Slug penetrates U-05 Engineer. H-55 Commando knocked back. R-06 Scavenger collects Imp. Hover Unit. Slug penetrates H-61 Shepherd. Matter Filter destroyed. Critical hit (Blast). K-01 Serf collects debris. Sml. Storage Unit destroyed. Penetrated by Slug. U-05 Engineer lays Concrete. K-01 Serf collects debris. U-05 Engineer lays Concrete. Ion Engine destroyed. Map ----- +----------------------------------------------------+ | ?????????????????????????????????????????????????? | | ?????????????????????????????????????????????????? | | ?????????????????????????????????????????????????? | | ?????????????????????????????????????????????????? | | ?????????????????????????????????????????????????? | | ?????????????????????????????????????????????????? | | ?????????????????????????????????????????????????? | | ?????????????????????????????????????????????????? | | ?????????????????????????????????????????????????? | | ?????????????????????????????????????????????????? | | ?????????????????????????????????????????????????? | | ?????????????????????????????????????????????????? | | ????????????????????####???###???????????????????? | | ??????????########### ?? #???????????????????? | | ??????????# = # """"" #????????? #????????? | | ??????????# # """"" #???????? #????????? | | ??????????# # """"" #????????! #????????? | | ??????????# # """"" #??????? #????????? | | ??????????# # """"" #?????? #????????? | | ??????????# ! # """"" #????? +????????? | | ??????????# # """"" #???? #????????? | | ??????????# [[# #??? != % #????????? | | ????###########+######+############%a ########???? | | ????# % % %^ % H h % * ?? | | ????# ^k% %g !% ?? | | ????# % @ * guu = ?? | | ????############# = ######;;# ### ##### "?? | | ????????????????# #??##? %""" #????????????? | | ????????????????# [[//#????? "T"?#????????????? | | ????????????????# ![[//#???? ?????????????? | | ????????????????########???? #????????????? | | ???????????????????????????# #????????????? | | ???????????????????????????# """ #????????????? | | ???????????????????????????#* """ #????????????? | | ???????????????????????????# """ #????????????? | | ???????????????????????????# ? #????????????? | | ???????????????????????????###???+###????????????? | | ?????????????????????????????????????????????????? | | ?????????????????????????????????????????????????? | | ?????????????????????????????????????????????????? | | ?????????????????????????????????????????????????? | | ?????????????????????????????????????????????????? | | ?????????????????????????????????????????????????? | | ?????????????????????????????????????????????????? | | ?????????????????????????????????????????????????? | | ?????????????????????????????????????????????????? | | ?????????????????????????????????????????????????? | | ?????????????????????????????????????????????????? | | ?????????????????????????????????????????????????? | | ?????????????????????????????????????????????????? | +----------------------------------------------------+ Best States ------------- Heat Dissipation 31 Energy Generation 10 Energy Capacity 250 Matter Stores 300 Matter Capacity 300 Sight Range 16 Terrain Scan Density 110 Evasion (%) 53 Matter Filtering 30 Offensive Hacking 10 Item Schematics ----------------- None Robot Schematics ------------------ None Fabricated ------------ Nothing Repaired ---------- Nothing Studied --------- None Alien Tech Used ----------------- None Achievements -------------- None Challenges ------------ None Game ------ Seed GrenadeLayeredShockpuncher Manual? 0 Play Time 00:11:38 Cumulative 13.1 hours Start 2026.08.06 @ 15:22:33 End 2026.08.06 @ 15:32:04 Sessions 1 Manual Loads 0 Difficulty Rogue Special Mode None Game No. 46 Rogue 46 Adventurer 0 Explorer 0 Win Type - Total 0 Types 0/0/0/0/0/0/0/0/0/0 Lore% 14 Gallery% 20 Achievement% 15 Wizard Run 0 Options --------- Layout 1 ASCII 0 Keyboard 0 Movement Mouse Keybinds 0 Fullscreen 1 Font 24/Smallcaps Map View 50x35 Zoom Use 0% Tactical HUD 0 Map Filters NONE Filters NONE Steam 1 RUN: 785953a7-bfc8-4731-b2db-5a07fbc60196